Cogmind - Beta 13 @@@ ROGUE MODE // 2024.04.30 @ 13:59:34 Player: JoshKwa Result: Destroyed by G-47 Trooper with Particle Gun Performance ------------- Evolutions (2) 1000 Regions Visited (3) 600 Robots Destroyed (18) 90 Value Destroyed (447) 447 Prototype IDs (3) 60 Alien Tech Used (0) 0 Bonus (0) 0 TOTAL SCORE: 2197 Bonus ------- None Cogmind --------- Core Integrity 0/550 Matter 14/300 Energy 98/100 System Corruption 0% Temperature Cool (27) Movement Core (50) Location -8/Materials Parts ------- > --- POWER (2) -------- (None) > --- PROPULSION (4) --- (None) > --- UTILITY (3) ------ (None) > --- WEAPON (2) ------- (None) > --- INVENTORY (5) ---- Light Deuterium Engine Compact Wheel Improved Assault Rifle Datajack Peak State ------------ > --- POWER ------------ Light Ion Engine Improved Ion Engine > --- PROPULSION ------- Light Treads Light Treads > --- UTILITY ---------- Small Storage Unit Structural Scanner Sensor Array > --- WEAPON ----------- Beam Rifle Autogun > --- INVENTORY -------- Power Shielding Autogun Autogun Improved Assault Rifle Grenade Launcher Grenade Launcher Datajack [Rating: 13] Favorites ----------- Power Light Ion Engine Engine Light Ion Engine Propulsion Light Treads Treads Light Treads Utility Small Storage Unit Device Structural Scanner Storage Small Storage Unit Protection Power Shielding Weapon Autogun Energy Gun EM Pulse Gun Energy Cannon Ion Cannon Ballistic Gun Autogun Launcher Grenade Launcher Build | -11 -10 -9 -8 ------- Run | Yrd Mat Mat Mat Slots Evolved 4 | . . 2 2 Power 1 | . . 1 . Propulsion 2 | . . . 2 Utility 1 | . . 1 . Weapon . | . . . . Parts Attached 22 | 6 4 4 8 Power 3 | 1 1 1 . Engine 3 | 1 1 1 . Core . | . . . . Reactor . | . . . . Propulsion 3 | 2 1 . . Treads 3 | 2 1 . . Leg . | . . . . Wheel . | . . . . Hover . | . . . . Flight . | . . . . Utility 4 | 1 1 1 1 Device 2 | . 1 1 . Storage 1 | 1 . . . Processor . | . . . . Hackware . | . . . . Protection 1 | . . . 1 Artifact . | . . . . Weapon 12 | 2 1 2 7 Energy Gun 3 | 2 . 1 . Energy Cannon 1 | . . . 1 Ballistic Gun 6 | . 1 1 4 Ballistic Cannon . | . . . . Launcher 2 | . . . 2 Special Weapon . | . . . . Impact Weapon . | . . . . Slashing Weapon . | . . . . Piercing Weapon . | . . . . Special Melee Weapon . | . . . . Unidentified Prototypes . | . . . . Parts Lost 13 | . . . 13 Power 1 | . . . 1 Propulsion 2 | . . . 2 Utility 3 | . . . 3 Weapon 7 | . . . 7 Highest Loss Streak 12 | . . . 12 To Critical Strikes . | . . . . Average Slot Usage (%) 82 | . 96 93 60 Engine 13 | . 14 16 10 Treads 20 | . 27 22 13 Device 14 | . 11 22 9 Storage 10 | . 14 11 7 Protection 1 | . . . 4 Energy Gun 11 | . 24 10 2 Ballistic Gun 7 | . 3 11 7 Launcher 1 | . . . 4 Naked Turns 12 | . . . 12 Heaviest Build 23 | 12 13 23 23 Greatest Support 40 | 40 40 40 40 Greatest Overweight (x) 2 | 2 . . 2 Average Overweight (x) . | . . . . Largest Inventory Capacity 8 | 8 8 8 8 Average Capacity 7 | 6 8 8 7 Most Carried 8 | 4 5 7 8 Average Carried 4 | 1 3 5 5 Final Capacity 8 | 8 8 8 5 Final Carried 6 | 1 4 6 4 Class Distribution -------------------- 100% | Mutant Dominant Class ---------------- Mutant | -10/Materials Mutant | -9/Materials Mutant | -8/Materials Resources | -11 -10 -9 -8 ----------- Run | Yrd Mat Mat Mat Matter Collected 392 | 258 . 41 93 Remotely . | . . . . Salvage Created 398 | . 107 41 250 Parts 29 | . 7 . 22 Haulers Intercepted . | . . . . Recyclers Shooed 1 | . 1 . . Parts Field Recycled . | . . . . Retrieved Matter . | . . . . Parts Self-Destructed . | . . . . Prevented . | . . . . Kills | -11 -10 -9 -8 ------- Run | Yrd Mat Mat Mat Combat Hostiles Destroyed 9 | . 3 1 5 Guns 5 | . 3 1 1 AOE 4 | . . . 4 Classes Destroyed 8 | . 3 . 5 Worker 3 | . . . 3 Builder 4 | . . . 4 Operator 1 | . 1 . . Watcher 1 | . . . 1 Swarmer 1 | . 1 . . Grunt 6 | . 2 1 3 Sentry 1 | . . . 1 Hunter 1 | . . . 1 Best Kill Streak 6 | . 4 1 6 Combat Bots Only 3 | . 3 1 3 Max Kills in Single Turn 3 | . 2 1 3 Gunslinging 1 | . 1 . . Exploded 1 | . . . 1 Melee . | . . . . Uniques/NPCs Destroyed . | . . . . Combat | -11 -10 -9 -8 -------- Run | Yrd Mat Mat Mat Hostile Shots Fired 126 | . 11 2 113 Missed 40 | . 1 1 38 Damage Taken 1954 | . 129 11 1814 Core 600 | . 49 . 551 Absorbed by Shields . | . . . . Redirected to Shielding 34 | . . . 34 Core Remaining (%) 93 | 100 80 100 . Volleys Fired 51 | . 9 1 41 Largest 2 | . 2 2 2 Hottest 90 | . 90 79 60 Shots Fired 79 | . 18 2 59 Gun 49 | . 18 2 29 Cannon 9 | . . . 9 Launcher 21 | . . . 21 Special . | . . . . Kinetic 31 | . 1 1 29 Thermal 18 | . 8 1 9 Explosive 21 | . . . 21 Electromagnetic 9 | . 9 . . Robot Hit Streak 22 | . 6 2 22 Robot Miss Streak 2 | . 2 . 2 Penetration Max 1 | . . . 1 Secondary Targets 1 | . 1 . . Max Gunslinging Chain 1 | . 1 . . Shots Hit Robots 57 | . 9 2 46 Core Hits 34 | . 5 1 28 Critical Kills . | . . . . Critical Parts Destroyed . | . . . . Critical Strikes . | . . . . Melee Attacks . | . . . . Impact . | . . . . Slashing . | . . . . Piercing . | . . . . Sneak Attacks . | . . . . Combat Hostiles . | . . . . Follow-up Attacks . | . . . . Damage Inflicted 1727 | . 165 33 1529 Guns 574 | . 130 33 411 Cannons 135 | . . . 135 Explosions 1003 | . 35 . 968 Melee . | . . . . Ramming 15 | . . . 15 Kinetic 429 | . . 18 411 Thermal 247 | . 97 15 135 Explosive 968 | . . . 968 Electromagnetic 68 | . 68 . . Impact . | . . . . Slashing . | . . . . Piercing . | . . . . Highest Corruption . | . . . . Average Corruption . | . . . . Corruption Purged . | . . . . Corruption Blocked . | . . . . Overload Shots . | . . . . Overflow Damage 18 | . . . 18 Projectiles . | . . . . Explosions 18 | . . . 18 Melee . | . . . . Knockbacks . | . . . . Impact . | . . . . Kinetic . | . . . . Secondary . | . . . . Self-Inflicted Damage 218 | . 31 . 187 Shots 7 | . 1 . 6 Rammed 3 | . 1 . 2 Targets Rammed 3 | . 1 . 2 Kicked . | . . . . Crushed . | . . . . Highest Temperature 184 | . 184 44 109 Average Temperature 51 | . 84 26 28 Received Heat Transfer 537 | . 36 6 495 Siege Activations . | . . . . Robots Corrupted . | . . . . Combat Hostiles . | . . . . Parts Fried . | . . . . Impact Corruptions . | . . . . Robots Melted . | . . . . Combat Hostiles . | . . . . Parts Melted . | . . . . Heat Transferred 544 | . 285 37 222 Parts Sabotaged . | . . . . Parts Stolen . | . . . . Parts Stripped . | . . . . Power Chain Reactions 1 | . 1 . . Alert | -11 -10 -9 -8 ------- Run | Yrd Mat Mat Mat Peak Influence 372 | . 176 121 372 Initial 74 | . . 74 50 Average 124 | . 119 95 179 Maximum Alert Level 1 | . . . 1 Low Security (%) 84 | 100 100 100 54 Level 1 15 | . . . 45 Level 2 . | . . . . Level 3 . | . . . . Level 4 . | . . . . Level 5 . | . . . . High Security . | . . . . Max Security . | . . . . Squads Dispatched 6 | . 2 1 3 Investigation 2 | . 1 . 1 Extermination . | . . . . Reinforcement 4 | . 1 1 2 Assault . | . . . . Garrison . | . . . . Intercept . | . . . . Searches Triggered . | . . . . Construction Impeded 1 | . . . 1 Haulers Reinforced . | . . . . Active Scanning Responses . | . . . . Cargo Convoy Interrupts . | . . . . Stealth | -11 -10 -9 -8 --------- Run | Yrd Mat Mat Mat Distress Signals 2 | . 1 . 1 Communications Jammed . | . . . . Distress Signals . | . . . . Times Spotted 27 | . 9 3 15 Peak Tracking Total 10 | . 4 2 10 Tactical Retreats 2 | . 1 . 1 Traps | -11 -10 -9 -8 ------- Run | Yrd Mat Mat Mat Traps Triggered 3 | . 1 . 2 Indirectly . | . . . . Trap Hack Attempts . | . . . . Triggered . | . . . . Disarmed . | . . . . Reprogrammed . | . . . . Reused . | . . . . Traps Extracted . | . . . . Installed . | . . . . Triggered . | . . . . Machines | -11 -10 -9 -8 ---------- Run | Yrd Mat Mat Mat Machines Disabled 3 | . . . 3 Max in Single Turn 1 | . . . 1 Machines Repaired . | . . . . Machines Dismantled . | . . . . Machines Sabotaged . | . . . . Overloaded Fab Kills . | . . . . Hacking | -11 -10 -9 -8 --------- Run | Yrd Mat Mat Mat Machines Accessed 7 | . 3 2 2 Terminals 6 | . 3 1 2 Fabricators . | . . . . Repair Stations . | . . . . Recycling Units . | . . . . Scanalyzers 1 | . . 1 . Garrison Access . | . . . . Total Hacks 23 | . 9 9 5 Successful 14 | . 4 7 3 Failed 9 | . 5 2 2 Catastrophic . | . . . . Database Lockouts . | . . . . Manual . | . . . . Terminals 17 | . 9 3 5 Fabricators . | . . . . Repair Stations . | . . . . Recycling Units . | . . . . Scanalyzers 6 | . . 6 . Garrison Access . | . . . . Terminal Hacks 10 | . 4 3 3 Record 1 | . . . 1 Robot Analysis 2 | . 1 1 . Prototype ID Bank 2 | . 1 1 . Emergency Access Points 1 | . . . 1 Locate Traps 2 | . 2 . . Zone Layout 2 | . . 1 1 Fabricator Hacks . | . . . . Repair Station Hacks . | . . . . Recycling Unit Hacks . | . . . . Scanalyzer 4 | . . 4 . Insert Component 2 | . . 2 . Analyze 2 | . . 2 . Garrison Access Hacks . | . . . . Unauthorized Hacks . | . . . . Terminals . | . . . . Fabricators . | . . . . Repair Stations . | . . . . Recycling Units . | . . . . Scanalyzers . | . . . . Garrison Access . | . . . . Data Cores Recovered . | . . . . Used . | . . . . Hacking Detections 6 | . 3 2 1 Full Trace Events 1 | . 1 . . Feedback Events . | . . . . Feedback Blocked . | . . . . Robot Schematics Acquired . | . . . . Robots Built . | . . . . Authchips . | . . . . Time . | . . . . Total Robot Build Rating . | . . . . Part Schematics Acquired 2 | . . 2 . Parts Built . | . . . . Authchips . | . . . . Time . | . . . . Total Part Build Rating . | . . . . Parts Repaired . | . . . . Time . | . . . . Parts Recycled . | . . . . Recycled Matter . | . . . . Retrieved Matter . | . . . . Retrieved Components . | . . . . Parts Scanalyzed 2 | . . 2 . Part Schematics Acquired 2 | . . 2 . Parts Damaged . | . . . . Bothacking | -11 -10 -9 -8 ------------ Run | Yrd Mat Mat Mat Used RIF Installer . | . . . . Robots Hacked . | . . . . Non-combat . | . . . . Combat . | . . . . Robot Hacks Applied . | . . . . Relay Couplers Released . | . . . . Fabnet Peak Effective % . | . . . . Robots Rewired . | . . . . Allies Hacked . | . . . . Hacks Repelled . | . . . . Allies | -11 -10 -9 -8 -------- Run | Yrd Mat Mat Mat Total Allies . | . . . . Largest Group . | . . . . Highest-Rated Group . | . . . . Highest-Rated Ally . | . . . . Total Orders . | . . . . Ally Attacks . | . . . . Total Damage . | . . . . Kills . | . . . . Allies Corrupted . | . . . . Allies Melted . | . . . . Intel | -11 -10 -9 -8 ------- Run | Yrd Mat Mat Mat Robot Analysis Total 2 | . 1 1 . Derelict Logs Recovered . | . . . . Drone Launches . | . . . . Drone Recoveries . | . . . . Exploration | -11 -10 -9 -8 ------------- Run | Yrd Mat Mat Mat Turns Passed 1154 | 70 314 373 397 Spaces Moved 667 | 43 172 223 229 Core 106 | 20 . . 86 Treads 561 | 23 172 223 143 Legs . | . . . . Wheels . | . . . . Hover . | . . . . Flight . | . . . . Fastest Speed 50 | 50 160 160 50 Average Speed 145 | 134 160 160 123 Slowest Speed 160 | 160 160 160 160 Overloaded Moves . | . . . . Propulsion Burnouts . | . . . . Robots Hopped . | . . . . Cave-ins Triggered . | . . . . Exploration Rate (%) 24 | 4 47 20 26 Regions Visited 3 Branch Regions . Pre-discovered Areas . | . . . . Known Exits Taken . | . . . . Unknown Exits Taken 3 | 1 1 1 . Scrap Searched . | . . . . Spaces Dug . | . . . . Terrain Destroyed 98 | . 2 . 96 Melee . | . . . . Projectile 2 | . . . 2 AOE 96 | . 2 . 94 Terrain Rammed . | . . . . Walls Destroyed . | . . . . Machines Disabled . | . . . . Actions | -11 -10 -9 -8 --------- Run | Yrd Mat Mat Mat Total 777 | 55 193 239 290 Wait 4 | . . 4 . Move 664 | 42 171 222 229 Hop . | . . . . Pick Up 26 | 7 7 6 6 Fast Attach . | . . . . Attach 20 | 6 3 4 7 Detach 1 | . . . 1 Swap 2 | . 1 . 1 Drop 6 | . 1 2 3 Fire 51 | . 9 1 41 Melee . | . . . . Ram 2 | . . . 2 Kick . | . . . . Crush 1 | . 1 . . Escape Stasis . | . . . . Rewire . | . . . . Trap . | . . . . Miscellaneous . | . . . . Route ------- -11/Scrapyard -10/Materials -9/Materials -8/Materials History --------- Turn | Location | Event 9 | -11/Scrapyard | Discovered new exit (range 16) 71 | -11/Scrapyard | Entered Materials 314 | -10/Materials | Discovered new exit (range 3) 334 | -10/Materials | Build established: Mutant 385 | -10/Materials | Entered another Materials area 385 | -9/Materials | Evolved 2 slots: Power x1, Utility x1 741 | -9/Materials | Discovered new exit (range 3) 758 | -9/Materials | Entered another Materials area 758 | -8/Materials | Evolved 2 slots: Propulsion x2 1074 | -8/Materials | Core integrity fell below 50% 1123 | -8/Materials | Core integrity fell below 20% 1150 | -8/Materials | Lost 12 parts (1p2n2u7w) 1155 | -8/Materials | Destroyed by G-47 Trooper with Particle Gun Last Messages --------------- 01089_ U-05 Engineer builds a Wall. 01091_ The unstable cave ceiling collapses. 01093_ K-01 Serf collects debris. 01094_ The unstable cave ceiling collapses. 01094_ K-01 Serf destroyed. 01094_ Autogun destroyed. 01097_ Knocked back. 01098_ K-01 Serf collects debris. 01098_ Autogun destroyed. 01109_ Critical hit (Burn: +37). 01110_ Acquired 2 matter. 01111_ A-02 Transporter destroyed. 01119_ Autogun destroyed. 01130_ Acquired Lgt. Deuterium Engine. 01143_ Triggered Blade Trap. 01143_ Massive razor-sharp blades shoot up from within the floor. 01143_ Power Shielding severed. 01148_ Acquired Com. Wheel. 01151_ Slammed into S-10 Pest. 01155_ Critical hit (Burn: +37). Map ----- +----------------------------------------------------+ | ????????????????????## ###????????# """ # ? | | ????????????????????## ###????????# """ # ? | | ????????????????????## #################+### ? | | ????????????????????## ? | | ????????????????????## ? | | ????????????????????## ? | | ????????????????????## """ """ ######+### #? | | ????????????????????## """ """ ## # #? | | ????????????????????## """ """ ## # #? | | ??????????????????#### ## # #? | | ???????????????????#"" m #???????????? | | ???????????????????#"T """ #???????????? | | ???????????????????#"" """ #???????????? | | ???????????????????### """ #???????????? | | ????????????????????## g "T" #???????????? | | ?????????????????????# gg """ #???????????? | | ?????????????????????# #???????????? | | ?????????????????????# !#???????????? | | ?????????????????????# u ############???????????? | | ?????????????????????# ###########????????????? | | ?????????????????????# # #????????????? | | ?????????????????????# # #????????????? | | ?????????????????????#^ !+ #????????????? | | ?????????? ####### # #????????????? | | ?????????? t ###########????????????? | | ?????????? @#??????????????????????? | | ???????????############ ?????????????????????? | | ??????????????????????# ???????????????????? | | ??????????????????????# ?????????????????? | | ??????????????????????####+#### ???????????????? | | ???????????????????????????????? ?????????????? | | ?????????????????????????????????**||#???????????? | | ???????????????????????????????????||#???????????? | | ????????????????????????????????????##???????????? | | ?????????????????????????????????????????????????? | | ?????????????????????????????????????????????????? | | ?????????????????????????????????????????????????? | | ?????????????????????????????????????????????????? | | ?????????????????????????????????????????????????? | | ?????????????????????????????????????????????????? | | ?????????????????????????????????????????????????? | | ?????????????????????????????????????????????????? | | ?????????????????????????????????????????????????? | | | | | | | | | | | | | | | +----------------------------------------------------+ Best States ------------- Heat Dissipation 31 Energy Generation 17 Energy Capacity 290 Matter Stores 298 Matter Capacity 300 Sight Range 16 Robot Scan Range 14 Terrain Scan Density 10 Power Shielding 33 Evasion (%) 50 Recoil Reduction 2 Item Schematics ----------------- Autogun | -9/Materials | Scanalyzed Grenade Launcher | -9/Materials | Scanalyzed Robot Schematics ------------------ None Fabricated ------------ Nothing Alien Tech Used ----------------- None Achievements -------------- None Challenges ------------ None Game ------ Seed ServoIntegrityCloak Manual? 0 Play Time 00:16:19 Cumulative 15.4 hours Start 2024.04.30 @ 13:42:52 End 2024.04.30 @ 13:59:34 Sessions 1 Manual Loads 0 Difficulty Rogue Special Mode None Game No. 52 Rogue 52 Adventurer 0 Explorer 0 Win Type - Total 0 Types 0/0/0/0/0/0/0/0/0 Lore% 14 Gallery% 22 Achievement% 19 Wizard Run 0 Options --------- Layout 0 ASCII 0 Keyboard 0 Movement Numpad Keybinds 0 Fullscreen 1 Font 18/SmallcapsGlow Map View 76x50 Zoom Use 0% Tactical HUD 1 Map Filters NONE Filters NONE Steam 1 RUN: d7818835-6e28-4d14-8eda-f53707d2a7b6